[Event "*** Titled Tuesday Blitz"]
[Site "Chess.com"]
[Date "2021.03.09"]
[Round "2"]
[White "GigaQuparadze"]
[Black "Artem_Sadovsky"]
[Result "1-0"]
[WhiteElo "2953"]
[BlackElo "2575"]
[TimeControl "180+1"]
[EndTime "10:15:01 PST"]
[Termination "GigaQuparadze won by resignation"]

1. e4 {[%clk 0:03:00.9]} 1... c6 {[%clk 0:02:59]} 2. d4 {[%clk 0:03:00.7]} 2...
d5 {[%clk 0:02:59.4]} 3. Nc3 {[%clk 0:03:01.3]} 3... dxe4 {[%clk 0:02:59.1]} 4.
Nxe4 {[%clk 0:03:02.2]} 4... Nf6 {[%clk 0:02:59.7]} 5. Nxf6+ {[%clk 0:03:02.4]}
5... exf6 {[%clk 0:03:00.6]} 6. c3 {[%clk 0:03:03]} 6... Bd6 {[%clk 0:03:01.4]}
7. Bd3 {[%clk 0:03:03.5]} 7... O-O {[%clk 0:03:02.3]} 8. Qc2 {[%clk 0:03:04]}
8... Re8+ {[%clk 0:03:03.2]} 9. Ne2 {[%clk 0:03:04.6]} 9... h5 {[%clk
0:03:04.1]} 10. O-O {[%clk 0:03:04.7]} 10... h4 {[%clk 0:03:04.5]} 11. h3 {[%clk
0:03:05.1]} 11... Nd7 {[%clk 0:03:04.7]} 12. Be3 {[%clk 0:03:03.1]} 12... Qc7
{[%clk 0:02:56.3]} 13. c4 {[%clk 0:03:01.5]} 13... c5 {[%clk 0:02:52.8]} 14. Nc3
{[%clk 0:02:58.5]} 14... a6 {[%clk 0:02:40.8]} 15. Nd5 {[%clk 0:02:54.5]} 15...
Qb8 {[%clk 0:02:38.2]} 16. Rae1 {[%clk 0:02:51.2]} 16... b6 {[%clk 0:02:33.6]}
17. Bf4 {[%clk 0:02:33.9]} 17... Rxe1 {[%clk 0:02:24.3]} 18. Rxe1 {[%clk
0:02:34.8]} 18... Bb7 {[%clk 0:02:24.9]} 19. Ne7+ {[%clk 0:02:04.5]} 19... Kf8
{[%clk 0:02:22]} 20. Bxd6 {[%clk 0:02:00]} 20... Qxd6 {[%clk 0:02:22.9]} 21. Nf5
{[%clk 0:02:00.5]} 21... Qf4 {[%clk 0:01:52.7]} 22. Qe2 {[%clk 0:01:59.5]} 22...
Rd8 {[%clk 0:01:53.4]} 1-0

[Event "*** Titled Tuesday Blitz"]
[Site "Chess.com"]
[Date "2021.03.09"]
[Round "2"]
[White "ShimanovAlex"]
[Black "GarciaIsaac"]
[Result "1-0"]
[WhiteElo "2788"]
[BlackElo "2520"]
[TimeControl "180+1"]
[EndTime "10:15:01 PST"]
[Termination "ShimanovAlex won by resignation"]

1. Nf3 {[%clk 0:03:00.9]} 1... Nf6 {[%clk 0:02:58.5]} 2. b3 {[%clk 0:02:58.9]}
2... g6 {[%clk 0:02:58.5]} 3. Bb2 {[%clk 0:02:58.9]} 3... Bg7 {[%clk 0:02:59.4]}
4. g3 {[%clk 0:02:59.5]} 4... O-O {[%clk 0:02:59.2]} 5. Bg2 {[%clk 0:02:59.5]}
5... d5 {[%clk 0:02:59.1]} 6. c4 {[%clk 0:02:59.3]} 6... c5 {[%clk 0:02:57.9]}
7. cxd5 {[%clk 0:02:59.5]} 7... Nxd5 {[%clk 0:02:58.4]} 8. Bxg7 {[%clk
0:02:59.3]} 8... Kxg7 {[%clk 0:02:58.8]} 9. Qc1 {[%clk 0:02:59.7]} 9... b6
{[%clk 0:02:50]} 10. O-O {[%clk 0:02:53.6]} 10... Bb7 {[%clk 0:02:49.1]} 11. d4
{[%clk 0:02:53.4]} 11... cxd4 {[%clk 0:02:41.9]} 12. Nxd4 {[%clk 0:02:54.3]}
12... e5 {[%clk 0:02:38.9]} 13. Nf3 {[%clk 0:02:47.6]} 13... Qe7 {[%clk
0:02:27.3]} 14. Qb2 {[%clk 0:02:45.5]} 14... Re8 {[%clk 0:02:20.7]} 15. Rd1
{[%clk 0:02:43.8]} 15... Nf6 {[%clk 0:02:17.2]} 16. Na3 {[%clk 0:02:39.8]} 16...
e4 {[%clk 0:02:10.5]} 17. Nd4 {[%clk 0:02:38.5]} 17... e3 {[%clk 0:02:10.6]} 18.
f3 {[%clk 0:02:34.7]} 18... Nbd7 {[%clk 0:02:02.6]} 19. Nc4 {[%clk 0:02:33.3]}
19... Rad8 {[%clk 0:01:55.5]} 20. Nd6 {[%clk 0:02:31.2]} 1-0

[Event "*** Titled Tuesday Blitz"]
[Site "Chess.com"]
[Date "2021.03.09"]
[Round "2"]
[White "BojanR1"]
[Black "ZiggyStardust64"]
[Result "0-1"]
[WhiteElo "2337"]
[BlackElo "2651"]
[TimeControl "180+1"]
[EndTime "10:15:37 PST"]
[Termination "ZiggyStardust64 won by resignation"]

1. d4 {[%clk 0:03:00.9]} 1... Nf6 {[%clk 0:02:59.2]} 2. c4 {[%clk 0:02:58.8]}
2... g6 {[%clk 0:02:59.8]} 3. Nf3 {[%clk 0:02:58]} 3... Bg7 {[%clk 0:02:59.7]}
4. Nc3 {[%clk 0:02:58.3]} 4... d5 {[%clk 0:02:59.6]} 5. Bf4 {[%clk 0:02:57.2]}
5... O-O {[%clk 0:02:59.2]} 6. e3 {[%clk 0:02:57]} 6... c5 {[%clk 0:02:59.6]} 7.
dxc5 {[%clk 0:02:54.2]} 7... Qa5 {[%clk 0:02:59.8]} 8. Qa4 {[%clk 0:02:52.4]}
8... Qxa4 {[%clk 0:02:56.8]} 9. Nxa4 {[%clk 0:02:52]} 9... Na6 {[%clk
0:02:40.2]} 10. O-O-O {[%clk 0:02:44.8]} 10... Be6 {[%clk 0:02:38.2]} 11. cxd5
{[%clk 0:02:43.4]} 11... Nxd5 {[%clk 0:02:38.4]} 12. Be5 {[%clk 0:02:41.7]}
12... Nxc5 {[%clk 0:02:18.1]} 13. Bxg7 {[%clk 0:02:34.1]} 13... Kxg7 {[%clk
0:02:19]} 14. Nxc5 {[%clk 0:02:30.1]} 14... Rac8 {[%clk 0:02:17.7]} 15. Kb1
{[%clk 0:02:27.8]} 15... Rxc5 {[%clk 0:02:16.7]} 16. Bd3 {[%clk 0:02:27.1]}
16... Nb4 {[%clk 0:02:15.1]} 17. Nd4 {[%clk 0:02:10.4]} 17... Bxa2+ {[%clk
0:02:09.9]} 18. Ka1 {[%clk 0:02:10.4]} 18... Ra5 {[%clk 0:02:06]} 19. b3 {[%clk
0:02:07.2]} 19... Bxb3+ {[%clk 0:02:03.8]} 20. Kb2 {[%clk 0:02:06.6]} 20... Bxd1
{[%clk 0:02:04.1]} 21. Rxd1 {[%clk 0:02:07]} 21... Nxd3+ {[%clk 0:01:52.1]} 22.
Rxd3 {[%clk 0:02:06.4]} 22... Rc8 {[%clk 0:01:45.7]} 23. Rb3 {[%clk 0:02:06]}
23... b6 {[%clk 0:01:45.1]} 24. Nb5 {[%clk 0:02:05.2]} 24... Rc5 {[%clk
0:01:42.9]} 25. Nc3 {[%clk 0:02:02.9]} 25... h5 {[%clk 0:01:38.4]} 26. h4 {[%clk
0:02:01.3]} 26... Rc4 {[%clk 0:01:38.1]} 27. g3 {[%clk 0:02:01.3]} 27... Rf5
{[%clk 0:01:37.9]} 28. f4 {[%clk 0:01:58.6]} 28... Rfc5 {[%clk 0:01:37.6]} 29.
e4 {[%clk 0:01:50.5]} 29... Rxc3 {[%clk 0:01:36.9]} 30. Rxc3 {[%clk 0:01:50.5]}
30... Rxc3 {[%clk 0:01:37.8]} 0-1

[Event "*** Titled Tuesday Blitz"]
[Site "Chess.com"]
[Date "2021.03.09"]
[Round "2"]
[White "Frogo47"]
[Black "FormerProdigy"]
[Result "0-1"]
[WhiteElo "2537"]
[BlackElo "2853"]
[TimeControl "180+1"]
[EndTime "10:15:41 PST"]
[Termination "FormerProdigy won by resignation"]

1. e4 {[%clk 0:03:00.9]} 1... c5 {[%clk 0:02:59.2]} 2. Nf3 {[%clk 0:03:00.2]}
2... d6 {[%clk 0:02:58.8]} 3. d4 {[%clk 0:03:00.3]} 3... cxd4 {[%clk 0:02:59.7]}
4. Nxd4 {[%clk 0:03:00.8]} 4... Nf6 {[%clk 0:03:00]} 5. Nc3 {[%clk 0:03:01.3]}
5... a6 {[%clk 0:02:59.8]} 6. Bg5 {[%clk 0:03:01.8]} 6... Nbd7 {[%clk
0:02:59.3]} 7. Qe2 {[%clk 0:03:01.1]} 7... Qc7 {[%clk 0:02:55.4]} 8. O-O-O
{[%clk 0:02:54.4]} 8... e6 {[%clk 0:02:49.7]} 9. f4 {[%clk 0:02:53.7]} 9... b5
{[%clk 0:02:44.6]} 10. Bxf6 {[%clk 0:02:47.4]} 10... Nxf6 {[%clk 0:02:41.6]} 11.
e5 {[%clk 0:02:46.7]} 11... dxe5 {[%clk 0:02:35.3]} 12. fxe5 {[%clk 0:02:46.6]}
12... Nd7 {[%clk 0:02:33.5]} 13. Nf3 {[%clk 0:02:41.4]} 13... Bb7 {[%clk
0:02:27.8]} 14. Re1 {[%clk 0:02:02.9]} 14... Bb4 {[%clk 0:02:24.1]} 15. Qe3
{[%clk 0:01:45.1]} 15... Rc8 {[%clk 0:02:16.7]} 16. a3 {[%clk 0:01:24.4]} 16...
Bxc3 {[%clk 0:02:15.3]} 17. Qxc3 {[%clk 0:01:22.4]} 17... Qxc3 {[%clk 0:02:15]}
18. bxc3 {[%clk 0:01:23.3]} 18... Rxc3 {[%clk 0:02:14]} 19. Kb2 {[%clk
0:01:23.6]} 19... Rc5 {[%clk 0:02:12.2]} 20. Bd3 {[%clk 0:01:17.7]} 20... Bxf3
{[%clk 0:02:09.9]} 21. gxf3 {[%clk 0:01:18.6]} 21... Nxe5 {[%clk 0:02:10.3]} 22.
f4 {[%clk 0:01:12.8]} 22... Nxd3+ {[%clk 0:02:08.2]} 23. cxd3 {[%clk 0:01:13.7]}
23... Kd7 {[%clk 0:02:07.8]} 24. Re5 {[%clk 0:01:09.6]} 24... Rhc8 {[%clk
0:02:06.6]} 0-1

[Event "*** Titled Tuesday Blitz"]
[Site "Chess.com"]
[Date "2021.03.09"]
[Round "2"]
[White "BursaBBSatranc"]
[Black "enriquebutti"]
[Result "1-0"]
[WhiteElo "2605"]
[BlackElo "2202"]
[TimeControl "180+1"]
[EndTime "10:15:59 PST"]
[Termination "BursaBBSatranc won by resignation"]

1. d4 {[%clk 0:03:00.9]} 1... d5 {[%clk 0:02:57.9]} 2. Bf4 {[%clk 0:03:01]} 2...
c5 {[%clk 0:02:50.1]} 3. e3 {[%clk 0:03:01.2]} 3... cxd4 {[%clk 0:02:48.5]} 4.
exd4 {[%clk 0:03:01.1]} 4... Nc6 {[%clk 0:02:48.2]} 5. c3 {[%clk 0:03:01.2]}
5... Nf6 {[%clk 0:02:44.9]} 6. Bd3 {[%clk 0:02:58.7]} 6... g6 {[%clk 0:02:40.6]}
7. Nf3 {[%clk 0:02:56.8]} 7... Bg7 {[%clk 0:02:40.1]} 8. O-O {[%clk 0:02:56.2]}
8... O-O {[%clk 0:02:39.5]} 9. h3 {[%clk 0:02:56.4]} 9... Bf5 {[%clk 0:02:38.3]}
10. Re1 {[%clk 0:02:56.3]} 10... Bxd3 {[%clk 0:02:37.4]} 11. Qxd3 {[%clk
0:02:57.2]} 11... Ne4 {[%clk 0:02:34.3]} 12. Nbd2 {[%clk 0:02:55.5]} 12... Nxd2
{[%clk 0:02:32.4]} 13. Qxd2 {[%clk 0:02:56.4]} 13... Re8 {[%clk 0:02:23.4]} 14.
Bh6 {[%clk 0:02:46.9]} 14... b5 {[%clk 0:02:16.4]} 15. Bxg7 {[%clk 0:02:42.2]}
15... Kxg7 {[%clk 0:02:14.6]} 16. a3 {[%clk 0:02:40.2]} 16... a5 {[%clk
0:02:12.7]} 17. h4 {[%clk 0:02:36.6]} 17... h5 {[%clk 0:02:02]} 18. Qf4 {[%clk
0:02:28.2]} 18... Qb8 {[%clk 0:01:48.8]} 19. Qg5 {[%clk 0:02:21.9]} 19... e6
{[%clk 0:01:42.2]} 20. g4 {[%clk 0:02:18.3]} 20... hxg4 {[%clk 0:01:41.3]} 21.
Qxg4 {[%clk 0:02:13.5]} 21... Rh8 {[%clk 0:01:39.5]} 22. Ng5 {[%clk 0:01:58.7]}
22... Ne7 {[%clk 0:01:30.2]} 23. Nxf7 {[%clk 0:01:37.7]} 23... Kxf7 {[%clk
0:01:28.3]} 24. Qxe6+ {[%clk 0:01:37.6]} 1-0

[Event "*** Titled Tuesday Blitz"]
[Site "Chess.com"]
[Date "2021.03.09"]
[Round "2"]
[White "tgpgoat"]
[Black "c_r_e_e_p_e_r"]
[Result "0-1"]
[WhiteElo "2164"]
[BlackElo "2414"]
[TimeControl "180+1"]
[EndTime "10:16:02 PST"]
[Termination "c_r_e_e_p_e_r won by resignation"]

1. d4 {[%clk 0:03:00.9]} 1... Nf6 {[%clk 0:02:59.8]} 2. Nf3 {[%clk 0:02:59.7]}
2... d5 {[%clk 0:02:59.1]} 3. Bf4 {[%clk 0:02:51.2]} 3... e6 {[%clk 0:02:59.1]}
4. e3 {[%clk 0:02:46.5]} 4... Bd6 {[%clk 0:02:59.4]} 5. Bg3 {[%clk 0:02:44.7]}
5... O-O {[%clk 0:03:00.1]} 6. Bd3 {[%clk 0:02:43.9]} 6... b6 {[%clk 0:03:00.3]}
7. c3 {[%clk 0:02:44.2]} 7... Bb7 {[%clk 0:02:59.4]} 8. Nbd2 {[%clk 0:02:44.6]}
8... c5 {[%clk 0:02:59.5]} 9. O-O {[%clk 0:02:43.8]} 9... Nc6 {[%clk 0:02:59.9]}
10. Re1 {[%clk 0:02:41.6]} 10... Qc7 {[%clk 0:02:56.2]} 11. Bxd6 {[%clk
0:02:38]} 11... Qxd6 {[%clk 0:02:56.4]} 12. a3 {[%clk 0:02:37.6]} 12... e5
{[%clk 0:02:54.4]} 13. dxe5 {[%clk 0:02:37.3]} 13... Nxe5 {[%clk 0:02:54.7]} 14.
Nxe5 {[%clk 0:02:38.2]} 14... Qxe5 {[%clk 0:02:55.3]} 15. Nf3 {[%clk 0:02:39.1]}
15... Qe7 {[%clk 0:02:55.9]} 16. b4 {[%clk 0:02:39.2]} 16... Rac8 {[%clk
0:02:55.3]} 17. a4 {[%clk 0:02:38.4]} 17... Ne4 {[%clk 0:02:54.3]} 18. Bxe4
{[%clk 0:01:45.7]} 18... dxe4 {[%clk 0:02:54.1]} 19. Nd2 {[%clk 0:01:45.3]}
19... cxb4 {[%clk 0:02:54.6]} 20. cxb4 {[%clk 0:01:45.8]} 20... Qxb4 {[%clk
0:02:54.6]} 21. Qe2 {[%clk 0:01:46.3]} 21... Rc2 {[%clk 0:02:51.1]} 22. Red1
{[%clk 0:01:46.1]} 22... h6 {[%clk 0:02:12.3]} 23. Qg4 {[%clk 0:01:27.3]} 23...
Rxd2 {[%clk 0:02:10.5]} 24. Rdb1 {[%clk 0:01:24.4]} 24... Rb2 {[%clk 0:02:08.7]}
25. Rd1 {[%clk 0:01:24.2]} 25... f5 {[%clk 0:01:56.9]} 26. Qg6 {[%clk
0:01:22.3]} 26... Qe7 {[%clk 0:01:56.9]} 27. g3 {[%clk 0:01:15.1]} 27... Rf6
{[%clk 0:01:54.7]} 28. Qh5 {[%clk 0:01:14.6]} 28... Qf7 {[%clk 0:01:42.4]} 29.
Qe2 {[%clk 0:01:12.3]} 29... Rxe2 {[%clk 0:01:41.7]} 0-1

[Event "*** Titled Tuesday Blitz"]
[Site "Chess.com"]
[Date "2021.03.09"]
[Round "2"]
[White "abeljusto"]
[Black "IMAghasiyevKamal"]
[Result "1-0"]
[WhiteElo "2174"]
[BlackElo "2512"]
[TimeControl "180+1"]
[EndTime "10:16:12 PST"]
[Termination "abeljusto won by resignation"]

1. d4 {[%clk 0:03:00.9]} 1... d5 {[%clk 0:02:59]} 2. Bf4 {[%clk 0:02:59.9]} 2...
Nf6 {[%clk 0:02:58.4]} 3. e3 {[%clk 0:02:59.1]} 3... c5 {[%clk 0:02:55.6]} 4. c3
{[%clk 0:02:57.8]} 4... Nc6 {[%clk 0:02:54.9]} 5. Nd2 {[%clk 0:02:58.2]} 5...
Bg4 {[%clk 0:02:45.9]} 6. Qb3 {[%clk 0:02:57.3]} 6... Qd7 {[%clk 0:02:41.7]} 7.
Ngf3 {[%clk 0:02:48.5]} 7... e6 {[%clk 0:02:35.5]} 8. Bb5 {[%clk 0:02:42.9]}
8... Bxf3 {[%clk 0:02:33.5]} 9. Nxf3 {[%clk 0:02:42.3]} 9... Bd6 {[%clk
0:02:24.3]} 10. Ne5 {[%clk 0:02:39.4]} 10... Qc7 {[%clk 0:02:17.1]} 11. Qa4
{[%clk 0:02:34.1]} 11... Nd7 {[%clk 0:01:49.5]} 12. Bxc6 {[%clk 0:02:15.6]}
12... Bxe5 {[%clk 0:01:44.4]} 13. Bxd7+ {[%clk 0:02:13.9]} 13... Qxd7 {[%clk
0:01:42.3]} 14. Qxd7+ {[%clk 0:02:12.7]} 14... Kxd7 {[%clk 0:01:43.2]} 15. Bxe5
{[%clk 0:02:12.5]} 15... f6 {[%clk 0:01:43.6]} 16. Bg3 {[%clk 0:02:12.2]} 16...
Rhc8 {[%clk 0:01:42.4]} 17. Ke2 {[%clk 0:02:08.5]} 17... Rc6 {[%clk 0:01:39.6]}
18. Rhd1 {[%clk 0:02:04.9]} 18... Rac8 {[%clk 0:01:33.6]} 19. dxc5 {[%clk
0:02:03.2]} 19... Rxc5 {[%clk 0:01:33.3]} 20. e4 {[%clk 0:02:02]} 20... Kc6
{[%clk 0:01:13.3]} 21. exd5+ {[%clk 0:02:01.1]} 21... exd5 {[%clk 0:01:11.3]}
22. Rd2 {[%clk 0:01:48.3]} 22... Re8+ {[%clk 0:01:08.8]} 23. Kf1 {[%clk
0:01:47.5]} 23... a5 {[%clk 0:01:07.7]} 24. Rad1 {[%clk 0:01:46.2]} 24... a4
{[%clk 0:01:04.1]} 25. a3 {[%clk 0:01:46]} 25... Re4 {[%clk 0:01:00.8]} 26. f3
{[%clk 0:01:45.2]} 26... Rb5 {[%clk 0:01:00.7]} 27. fxe4 {[%clk 0:01:44]} 1-0

[Event "*** Titled Tuesday Blitz"]
[Site "Chess.com"]
[Date "2021.03.09"]
[Round "2"]
[White "jefferyx"]
[Black "Mikhail_Golubev"]
[Result "1-0"]
[WhiteElo "3016"]
[BlackElo "2588"]
[TimeControl "180+1"]
[EndTime "10:16:16 PST"]
[Termination "jefferyx won by resignation"]

1. e4 {[%clk 0:03:00.9]} 1... c5 {[%clk 0:02:56.4]} 2. Nf3 {[%clk 0:03:00.9]}
2... d6 {[%clk 0:02:56.2]} 3. d4 {[%clk 0:03:01.1]} 3... Nf6 {[%clk 0:02:56.2]}
4. Bb5+ {[%clk 0:02:59.1]} 4... Nbd7 {[%clk 0:02:52.7]} 5. Nc3 {[%clk
0:02:58.7]} 5... cxd4 {[%clk 0:02:51.9]} 6. Qxd4 {[%clk 0:02:59.6]} 6... g6
{[%clk 0:02:51.2]} 7. Bg5 {[%clk 0:02:25]} 7... Bg7 {[%clk 0:02:50.6]} 8. e5
{[%clk 0:02:15.4]} 8... dxe5 {[%clk 0:02:28.7]} 9. Nxe5 {[%clk 0:02:16.3]} 9...
O-O {[%clk 0:02:26.5]} 10. O-O-O {[%clk 0:02:16.8]} 10... Qa5 {[%clk 0:01:09.5]}
11. f4 {[%clk 0:02:16]} 11... Nxe5 {[%clk 0:00:24]} 12. fxe5 {[%clk 0:02:16.9]}
12... Ng4 {[%clk 0:00:24.1]} 13. Bxe7 {[%clk 0:02:17]} 13... Bxe5 {[%clk
0:00:22.5]} 14. Qb4 {[%clk 0:02:17.3]} 14... Bxc3 {[%clk 0:00:13.5]} 15. bxc3
{[%clk 0:02:18.2]} 15... Qxb4 {[%clk 0:00:13.5]} 16. cxb4 {[%clk 0:02:12.4]}
16... Nf2 {[%clk 0:00:12.3]} 17. Bxf8 {[%clk 0:02:12.7]} 17... Be6 {[%clk
0:00:10.6]} 18. Bc5 {[%clk 0:02:11.2]} 18... Nxh1 {[%clk 0:00:09.4]} 19. Rxh1
{[%clk 0:02:12.1]} 1-0

[Event "*** Titled Tuesday Blitz"]
[Site "Chess.com"]
[Date "2021.03.09"]
[Round "2"]
[White "buhomurciano"]
[Black "Korona_91"]
[Result "0-1"]
[WhiteElo "2259"]
[BlackElo "2484"]
[TimeControl "180+1"]
[EndTime "10:16:18 PST"]
[Termination "Korona_91 won by checkmate"]

1. e4 {[%clk 0:03:00.9]} 1... e6 {[%clk 0:02:59.8]} 2. d3 {[%clk 0:02:57.1]}
2... d5 {[%clk 0:03:00]} 3. Qe2 {[%clk 0:02:56.8]} 3... dxe4 {[%clk 0:02:57.9]}
4. dxe4 {[%clk 0:02:56.5]} 4... e5 {[%clk 0:02:58.1]} 5. c3 {[%clk 0:02:52.5]}
5... Nf6 {[%clk 0:02:55.8]} 6. Qc2 {[%clk 0:02:52.2]} 6... Nc6 {[%clk
0:02:54.5]} 7. Bc4 {[%clk 0:02:43.6]} 7... Bc5 {[%clk 0:02:54.2]} 8. Nf3 {[%clk
0:02:41.3]} 8... Bg4 {[%clk 0:02:53]} 9. b4 {[%clk 0:02:28]} 9... Bxf3 {[%clk
0:02:46.7]} 10. gxf3 {[%clk 0:02:27.5]} 10... Bb6 {[%clk 0:02:41.3]} 11. a4
{[%clk 0:02:24.5]} 11... a5 {[%clk 0:02:39.6]} 12. b5 {[%clk 0:02:24.1]} 12...
Ne7 {[%clk 0:02:39.6]} 13. Rg1 {[%clk 0:02:12.4]} 13... Ng6 {[%clk 0:02:39.2]}
14. Ba3 {[%clk 0:02:07.9]} 14... Qd7 {[%clk 0:02:38.9]} 15. Nd2 {[%clk
0:01:52.6]} 15... O-O-O {[%clk 0:02:38.6]} 16. Nb3 {[%clk 0:01:17.3]} 16... Nh4
{[%clk 0:02:32.7]} 17. Be2 {[%clk 0:00:39.6]} 17... Qh3 {[%clk 0:02:28.1]} 18.
c4 {[%clk 0:00:10.8]} 18... Qxh2 {[%clk 0:02:14.5]} 19. Rf1 {[%clk 0:00:09.5]}
19... Ng2# {[%clk 0:02:14.2]} 0-1

[Event "*** Titled Tuesday Blitz"]
[Site "Chess.com"]
[Date "2021.03.09"]
[Round "2"]
[White "KazakhFighter04"]
[Black "dosto07"]
[Result "1-0"]
[WhiteElo "2746"]
[BlackElo "2346"]
[TimeControl "180+1"]
[EndTime "10:16:27 PST"]
[Termination "KazakhFighter04 won by resignation"]

1. d4 {[%clk 0:03:00.9]} 1... d5 {[%clk 0:02:59]} 2. Nc3 {[%clk 0:03:01.3]} 2...
Nf6 {[%clk 0:02:57.6]} 3. Bf4 {[%clk 0:03:01.1]} 3... c6 {[%clk 0:02:56.9]} 4.
e3 {[%clk 0:03:01.3]} 4... Bf5 {[%clk 0:02:55.1]} 5. Bd3 {[%clk 0:03:01.2]} 5...
e6 {[%clk 0:02:52.3]} 6. Nf3 {[%clk 0:03:01.4]} 6... Nbd7 {[%clk 0:02:45.1]} 7.
O-O {[%clk 0:03:00.9]} 7... Be7 {[%clk 0:02:40.7]} 8. Re1 {[%clk 0:03:01.1]}
8... O-O {[%clk 0:02:39.3]} 9. e4 {[%clk 0:03:01.1]} 9... dxe4 {[%clk
0:02:39.8]} 10. Nxe4 {[%clk 0:03:02]} 10... Nxe4 {[%clk 0:02:39.6]} 11. Bxe4
{[%clk 0:03:02.9]} 11... Bxe4 {[%clk 0:02:39.8]} 12. Rxe4 {[%clk 0:03:03.8]}
12... Nf6 {[%clk 0:02:39.8]} 13. Re1 {[%clk 0:03:04.5]} 13... c5 {[%clk
0:02:37.4]} 14. c4 {[%clk 0:03:01.3]} 14... Rc8 {[%clk 0:02:32.8]} 15. b3 {[%clk
0:02:58.7]} 15... a6 {[%clk 0:02:27.4]} 16. Qc2 {[%clk 0:02:53.8]} 16... cxd4
{[%clk 0:02:25.3]} 17. Rad1 {[%clk 0:02:54]} 17... b5 {[%clk 0:02:15.2]} 18.
Rxd4 {[%clk 0:02:50.2]} 18... Qb6 {[%clk 0:02:07.7]} 19. Be5 {[%clk 0:02:50.4]}
19... Rfd8 {[%clk 0:02:00.5]} 20. Red1 {[%clk 0:02:40.6]} 20... bxc4 {[%clk
0:01:56]} 21. bxc4 {[%clk 0:02:38.2]} 21... Rxd4 {[%clk 0:01:50.8]} 22. Rxd4
{[%clk 0:02:39.1]} 22... h6 {[%clk 0:01:45.5]} 23. h3 {[%clk 0:02:39.1]} 23...
Qc6 {[%clk 0:01:45.3]} 24. Qd3 {[%clk 0:02:33.6]} 24... Qa4 {[%clk 0:01:37.5]}
25. Qe2 {[%clk 0:02:32.7]} 25... Qb4 {[%clk 0:01:34.8]} 26. g4 {[%clk
0:02:24.4]} 26... a5 {[%clk 0:01:29.1]} 27. Kg2 {[%clk 0:02:24]} 27... a4 {[%clk
0:01:26.8]} 28. h4 {[%clk 0:02:22.5]} 28... Qb7 {[%clk 0:01:20.5]} 29. g5 {[%clk
0:02:22]} 29... hxg5 {[%clk 0:01:18.4]} 30. hxg5 {[%clk 0:02:22.9]} 30... Nd7
{[%clk 0:01:17.9]} 31. g6 {[%clk 0:02:16.6]} 31... Nxe5 {[%clk 0:01:03.8]} 32.
Qxe5 {[%clk 0:02:02.8]} 32... Bf6 {[%clk 0:01:03.8]} 33. Qe4 {[%clk 0:01:54]}
33... Bxd4 {[%clk 0:01:02.6]} 34. Qxb7 {[%clk 0:01:52.8]} 1-0

[Event "*** Titled Tuesday Blitz"]
[Site "Chess.com"]
[Date "2021.03.09"]
[Round "2"]
[White "Barbus89"]
[Black "Kildepiotr"]
[Result "0-1"]
[WhiteElo "2281"]
[BlackElo "2572"]
[TimeControl "180+1"]
[EndTime "10:16:33 PST"]
[Termination "Kildepiotr won by resignation"]

1. Nf3 {[%clk 0:03:00.9]} 1... g6 {[%clk 0:02:59.3]} 2. g3 {[%clk 0:03:00.8]}
2... Bg7 {[%clk 0:02:59.6]} 3. d4 {[%clk 0:03:01.3]} 3... d5 {[%clk 0:03:00.2]}
4. Bg2 {[%clk 0:03:00.3]} 4... Nf6 {[%clk 0:03:00.3]} 5. O-O {[%clk 0:03:00.2]}
5... O-O {[%clk 0:03:00.6]} 6. c4 {[%clk 0:03:00.7]} 6... c6 {[%clk 0:03:01]} 7.
cxd5 {[%clk 0:03:00.3]} 7... cxd5 {[%clk 0:03:01.9]} 8. Nc3 {[%clk 0:03:00.8]}
8... Ne4 {[%clk 0:03:02.1]} 9. Nxe4 {[%clk 0:02:54.8]} 9... dxe4 {[%clk
0:03:03]} 10. Nd2 {[%clk 0:02:55.3]} 10... f5 {[%clk 0:03:00.5]} 11. e3 {[%clk
0:02:54]} 11... Be6 {[%clk 0:02:59.8]} 12. Nb3 {[%clk 0:02:41.7]} 12... b6
{[%clk 0:02:58]} 13. Qe2 {[%clk 0:02:38.9]} 13... Nd7 {[%clk 0:02:51]} 14. Bd2
{[%clk 0:02:37.7]} 14... Rc8 {[%clk 0:02:50.2]} 15. Rac1 {[%clk 0:02:36.6]}
15... Nf6 {[%clk 0:02:49.8]} 16. Rxc8 {[%clk 0:02:35.4]} 16... Qxc8 {[%clk
0:02:50.7]} 17. Rc1 {[%clk 0:02:35.1]} 17... Qb7 {[%clk 0:02:50.7]} 18. Qb5
{[%clk 0:02:33.5]} 18... Rc8 {[%clk 0:02:46.4]} 19. Nc5 {[%clk 0:02:27.9]} 19...
Qd5 {[%clk 0:02:44.9]} 20. Bf1 {[%clk 0:02:16.1]} 20... bxc5 {[%clk 0:02:34.6]}
21. Bc4 {[%clk 0:02:16]} 21... Qc6 {[%clk 0:02:25.6]} 22. Qxc5 {[%clk
0:02:01.6]} 22... Bxc4 {[%clk 0:02:21.2]} 23. Rxc4 {[%clk 0:01:59]} 23... Qxc5
{[%clk 0:02:20.6]} 24. dxc5 {[%clk 0:01:58]} 24... Nd7 {[%clk 0:02:12.4]} 25. b4
{[%clk 0:01:57.6]} 25... a6 {[%clk 0:02:11.6]} 26. Bc3 {[%clk 0:01:53.9]} 26...
Bxc3 {[%clk 0:02:10]} 27. Rxc3 {[%clk 0:01:54.8]} 27... Kf7 {[%clk 0:02:10]} 28.
Kf1 {[%clk 0:01:53.7]} 28... Ke6 {[%clk 0:02:09.8]} 29. Ke2 {[%clk 0:01:53.6]}
29... Ne5 {[%clk 0:02:09.8]} 30. a4 {[%clk 0:01:51.9]} 30... Rb8 {[%clk
0:02:09.4]} 31. c6 {[%clk 0:01:48.5]} 31... Kd6 {[%clk 0:02:09.3]} 32. b5 {[%clk
0:01:45.2]} 32... axb5 {[%clk 0:02:09.1]} 33. axb5 {[%clk 0:01:46.1]} 33... Kc7
{[%clk 0:01:58.4]} 34. Rc5 {[%clk 0:01:38.7]} 34... Nf7 {[%clk 0:01:58.3]} 35.
Rd5 {[%clk 0:01:36.9]} 35... Rd8 {[%clk 0:01:57.6]} 36. Rxd8 {[%clk 0:01:19.2]}
36... Nxd8 {[%clk 0:01:56.7]} 37. Kd2 {[%clk 0:01:19.3]} 37... Kb6 {[%clk
0:01:56.4]} 38. Kc3 {[%clk 0:01:18.5]} 38... Ne6 {[%clk 0:01:55.5]} 39. Kc4
{[%clk 0:01:17.1]} 39... Nc7 {[%clk 0:01:55.5]} 40. Kd4 {[%clk 0:01:15.3]} 40...
Nxb5+ {[%clk 0:01:55.1]} 41. Ke5 {[%clk 0:01:16.2]} 41... Nc7 {[%clk 0:01:54.7]}
0-1